{"text_format":"1","workbook":"xlsx","n_sheets":4,"sheets":["Vendor Worksheet Instructions","Vendor Worksheet","Certification Instructions","Vendor Summary & Certification"],"not_rendered":{"charts":0,"images":2,"macros":1,"external_links":0,"defined_names":5,"comments":0,"pivot_tables":0},"unopened":[],"bounds":{"document_bytes":16777216,"sheet_cells":100000,"rows_first":2000,"rows_last":500,"rows_between":2000,"halvings":0,"cell_chars":16384,"cell_head_chars":4096},"cells_cut":0,"cells_raw":0,"read":"whole","date_system":"1900"}

{"sheet":"Vendor Worksheet Instructions","index":0,"n_rows":65,"n_cols":2,"rows_kept":65,"cut":false,"hidden":false,"merged":[[31,1,31,8],[27,1,27,8],[3,0,3,8],[21,1,21,8],[19,1,19,8],[29,0,30,8],[33,1,33,8],[35,1,35,8],[64,0,64,8],[62,0,62,8],[37,1,37,8],[47,1,47,8],[49,1,49,8],[58,1,58,8],[54,1,54,8],[56,1,56,8],[60,1,60,8],[43,1,43,8],[50,1,50,8]]}
["AB 10 MINIMUM WAGE 2016 RATE ADJUSTMENT"]
["WORKSHEET INSTRUCTIONS"]
[]
["These instructions are for the Vendor Worksheet.  After you read these instructions, please go to the “Vendor Worksheet” tab to begin.  You will ONLY be able to fill-in and select from the shaded fields on this worksheet.  The information you submit on this worksheet will be reviewed by the Regional Center.  If additional information is needed the Regional Center will contact you.  After the review, the Regional Center will respond to your request accordingly."]
[]
["SECTION A:  PROGRAM INFORMATION"]
[]
["Row 1","Please enter the Service Provider Name."]
[]
["Row 2","Please enter the six-digit Vendor Number."]
[]
["Row 3","Please enter the three-digit Service Code."]
[]
["Row 4","Please enter the Subcode if applicable."]
[]
["Row 5","Please enter the Staffing Ratio."]
[]
["Row 6","Please enter the number of Enrolled Consumers."]
[]
["Row 7","Please enter the dates for the beginning and end of the review period of July, August and September 2015.  "]
[]
["Row 8","Please enter the current rate as established by the Department and select the Unit Type, either Daily or Hourly, from the drop-down list."]
[]
["Rows 9 & 10","Rate information will populate automatically here."]
[]
["Row 11","Select the Vendoring Regional Center from the drop-down list."]
[]
["Row 12-14","Select the User Regional Center(s), if applicable, from the drop-down list.  If you need to list additional user regional centers, please add rows by clicking as instructed on the designated button."]
[]
["SECTION B:  EMPLOYEE WAGE INFORMATION"]
[]
["Column A","Please enter the name or initials of the employed staff who were paid during the review period, followed by their position title.  For any employee/position who received two or more different hourly wages during the review period being reported, please list only the most current wage paid with the requested information in columns B through I.  If additional rows are needed, please click on the designated button."]
[]
[null,"DO NOT include staff who are providing these services that are funded by another source, such as through a contract with a school district.  Also, DO NOT include wages paid to consumers while receiving these services or any worker who is paid through other sources such as contract funding."]
[]
["Column B","Please enter the Position Title of the Employee."]
[]
["Column C","Please enter the current Hourly Wage paid to the employee(s) reported during the Review Period."]
[]
["Columns D - G","Wage information will calculate automatically here."]
[]
["Column H","Please enter the Workers' Compensation Insurance Employer Rate as a percentage."]
[]
["Column I","Please enter your Total Unemploment Insurance contribution rate as a percentage,  including the net Federal and State rates, and the Employment Training Tax of 0.1%.  (Refer to your Form DE-2088 that you receive from the State of California Employment Development Department (EDD) for your contribution rates for Unemployment Insurance and Employment Training Tax.) "]
[]
["Column J","Wage information will calculate automatically here."]
[]
["Column K","Please enter the actual Total Hours Worked During the Review Period by each of the reported employee(s)."]
[]
["Column L","Annualized hourly information will calculate automatically here."]
[null,"If less than a 3 month period, Section A Row 7,  Department Staff will adjust the calculation as needed."]
[]
["SECTION C:  RATE ADJUSTMENT CALCULATION"]
[]
["Row 1","Total wages, payroll taxes, workers' compensation, and other mandated employer costs will calculate automatically here."]
[]
["Row 2","Total Actual Number of Units of Services Billed to all Regional Centers during the \n3 month period will calculate automatically here."]
[]
["Rows 3 - 9","Please select the individual regional center(s) billed in the Review Period and enter the total units billed in the Review Period for the selected regional center(s).  If you need to list additional regional centers, please click the designated button."]
[]
["Row 10","The rate change will calculate automatically here and populate Row 9 in Section A, Program Information."]
[]
["Please review ALL the information you have entered on the worksheet, and specifically rows 8 - 10 in Section A, and row 10 in Section C.  These rows should have calculated rate information based on the data you have entered.  If there is an error message in these rows, you may need to re-enter the information in Sections B, and/or C."]
[]
["Before submitting, please save your workbook using the vendor number in the title of the file.  Failure to do so results in the submission of an empty workbook."]

{"sheet":"Vendor Worksheet","index":1,"n_rows":113,"n_cols":13,"rows_kept":113,"cut":false,"hidden":false,"merged":[[4,2,4,7],[5,2,5,7],[6,2,6,7],[8,2,8,7],[9,2,9,7],[10,8,10,12],[11,3,11,6],[12,3,12,6],[12,8,12,12],[13,3,13,6],[13,8,13,12],[10,2,10,7],[14,2,14,7],[15,2,15,7],[16,2,16,7],[18,2,18,7],[24,2,27,2],[24,3,27,3],[24,4,27,4],[24,5,27,5],[24,6,27,6],[24,7,27,7],[17,2,17,7],[24,8,27,8],[24,10,27,10],[24,11,27,11],[24,12,27,12],[26,1,27,1],[24,9,27,9]]}
["AB 10 MINIMUM WAGE 2016 RATE ADJUSTMENT"]
["Effective January 1, 2016"]
[]
["SECTION A:  PROGRAM INFORMATION"]
[1,"Service Provider Name"]
[2,"Vendor Number"]
[3,"Service Code"]
[4,"Sub-code (if applicable)"]
[5,"Staffing Ratio"]
[6,"Number of Enrolled Consumers"]
[7,"Review Period: (Enter Beginning & End)"]
[8,"Current Rate:",null,"Select Unit Type: "]
[9,"Rate Adjustment:",{"$f":"H56","v":{"$error":"#DIV/0!"}}]
[10,"New Rate:",{"$f":"C12+H56","v":{"$error":"#DIV/0!"}}]
[11,"Select Vendoring Regional Center from Drop Down Menu"]
[12,"Select User Regional Centers from Drop Down Menu"]
[{"$f":"A16+1","v":13},"Select User Regional Centers"]
[{"$f":"A17+1","v":14},"Select User Regional Centers"]
[{"$f":"A18+1","v":15},"Select User Regional Centers"]
[]
[]
[]
["SECTION B:  EMPLOYEE WAGE INFORMATION"]
[null,"A","B","C","D","E ","F","G","H","I","J","K","L"]
[null,"Name or Initials of Staff Employee(s)","Position Title","Prior Hourly Wage","New Hourly Wage","Hourly Wage Change","Employer Social Security Tax @ 6.2%","Employer Medicare Tax @1.45%","Workers Compensation as a %","Unemploy. Insurance \nas a %","Wage Adjustment plus Mandated Payroll Costs","Hours Worked During \n3 Month Review Period","Cost of Rate Adjustment \n(3 Month Period)"]
[]
["Row","(Please See Instructions for Listing Employees Receiving more than One Wage)"]
["#"]
[1,"Staff 1",null,null,{"$f":"IF(D29>8.99,10,0)","v":0},{"$f":"IF(E29-D29>0,E29-D29,0)","v":0},{"$f":"F29*0.062","v":0},{"$f":"F29*0.0145","v":0},null,null,{"$f":"SUM(F29+G29+H29)+(F29*I29)+(F29*J29)","v":0},null,{"$f":"SUM(K29*L29)","v":0}]
[2,"Staff 2 ",null,null,{"$f":"IF(D30>8.99,10,0)","v":0},{"$f":"IF(E30-D30>0,E30-D30,0)","v":0},{"$f":"F30*0.062","v":0},{"$f":"F30*0.0145","v":0},null,null,{"$f":"SUM(F30+G30+H30)+(F30*I30)+(F30*J30)","v":0},null,{"$f":"SUM(K30*L30)","v":0}]
[3,"Staff 3",null,null,0,0,0,0,null,null,0,null,0]
[4,"Staff 4",null,null,0,0,0,0,null,null,0,null,0]
[5,"Staff 5",null,null,0,0,0,0,null,null,0,null,0]
[6,"Staff 6",null,null,{"$f":"IF(D34>8.99,10,0)","v":0},0,0,0,null,null,0,null,0]
[7,"Staff 7",null,null,{"$f":"IF(D35>8.99,10,0)","v":0},0,0,0,null,null,0,null,0]
[8,null,null,null,0,0,0,0,null,null,0,null,0]
[9,null,null,null,0,0,0,0,null,null,0,null,0]
[{"$f":"A37+1","v":10},null,null,null,0,0,0,0,null,null,0,null,0]
[" ",null,null,null,null,null,null,null,"Totals",null,{"$f":"SUM(K29:K38)","v":0},{"$f":"SUM(L29:L38)","v":0},0]
[null," "]
[]
[]
[]
[]
["SECTION C:  RATE ADJUSTMENT CALCULATION"]
[1,null,null,null,null,null,"Total Cost of the Minimum Wage Adjustment for the Review Period:",{"$f":"IF(M39>0,M39,\"0.0\")","v":"0.0"}]
[2,null,null,null,null,null,"Actual Number of Units of Services Billed to all Regional Centers for the Review Period:",{"$f":"SUM(H49:H55)","v":0}]
[]
[3,"Select Regional Center from Drop Down Menu:",null,null,null,null,"Enter Total No. of Units for Review Period"]
[4,"Select Regional Center:","NBRC",null,null,null,"Enter Total No. of Units for Review Period"]
[5,"Select Regional Center:",null,null,null,null,"Enter Total No. of Units for Review Period"]
[6,"Select Regional Center:",null,null,null,null,"Enter Total No. of Units for Review Period"]
[7,"Select Regional Center:",null,null,null,null,"Enter Total No. of Units for Review Period"]
[8,"Select Regional Center:",null,null,null,null,"Enter Total No. of Units for Review Period"]
[9,"Select Regional Center:",null,null,null,null,"Enter Total No. of Units for Review Period"]
[10,"Rate Change (Section C, Row 1: Total Cost of Minimum Wage Adjustment/Section C, Row 3: Annualized Number of Units of Service)",null,null,null,null,null,{"$f":"ROUND(H46/H47,2)","v":{"$error":"#DIV/0!"}}]
[]
[]
[]
[]
[]
[]
[]
[]
[]
[]
[]
[]
[]
[]
[]
[]
[]
[]
[]
[]
[]
[]
[]
[]
[]
[]
[]
[]
[]
[]
[]
["Daily","Daily"]
["Hourly","Hourly"]
["Monthly","Monthly"]
["Other","Other"]
[]
["ACRC","ACRC"]
["CVRC","CVRC"]
["ELARC","ELARC"]
["FDLRC","FDLRC"]
["FNRC","FNRC"]
["GGRC","GGRC"]
["HRC","HRC"]
["IRC","IRC"]
["KRC","KRC"]
["NBRC","NBRC"]
["NLACRC","NLACRC"]
["RCEB","RCEB"]
["RCOC","RCOC"]
["RCRC","RCRC"]
["SARC","SARC"]
["SCLARC","SCLARC"]
["SDRC","SDRC"]
["SGPRC","SGPRC"]
["TCRC","TCRC"]
["VMRC","VMRC"]
["WRC","WRC"]

{"sheet":"Certification Instructions","index":2,"n_rows":24,"n_cols":1,"rows_kept":24,"cut":false,"hidden":false,"merged":[[18,0,18,8],[3,0,3,8],[5,0,5,8],[7,0,7,8],[11,0,11,8],[15,0,15,8],[13,0,13,8],[9,0,9,8],[23,0,23,8],[22,0,22,8],[21,0,21,8],[27,0,27,8],[25,0,25,8],[24,0,24,8]]}
["AB 10 MINIMUM WAGE 2016 RATE ADJUSTMENT"]
["SUMMARY & CERTIFICATION INSTRUCTIONS"]
[]
["These instructions are for the Vendor Summary & Certification.   After you read these instructions, please go to the “Vendor Summary & Certification” tab.  Please review the Program Information and enter the service address associated with the information submitted on this workbook.  If your program has a different mailing address than the service address, please enter this information."]
[]
["Please enter the requested Contact Information for the individual responsible for completing this workbook.  This information will include Contact Name, Contact Phone Number, Email Address, and Executive Director/Owner."]
[]
["Please review the current rate, proposed rate change, and the proposed new rate, which are calculated based on the information you have entered on the worksheet.  If there is an error message in the rate information, go back and review the information in the worksheet. "]
[]
["Please ensure you click on the \"I AGREE\" checkbox prior to saving or sending the workbook."]
[]
["We ask that you save this workbook using your vendor number and service code in the title of the file name.  For example, \"H12345 510.xlsm\", then email the workbook to the Department at \"Megand@nbrc.net” by hitting the “SUBMIT” button on the bottom of the Vendor Summary & Certification worksheet.  Please ensure you submit a copy to the vendoring regional center and to keep copies for your records."]
[]
["PLEASE NOTE:  By hitting the “SUBMIT” button on the bottom of the “Vendor Summary & Certification” worksheet, you certify that the information provided to the Department is specific to payroll costs necessary to meet the requirements of the minimum wage increase effective January 1, 2016.  You additionally certify to the best of your knowledge and belief that the information submitted is true and correct, and subject to verification by all record keeping and audit processes, procedures, and guidelines under the Lanterman Act and Title 17 of the California Code of Regulations (CCR)."]
[]
["You must retain ALL backup documentation which supports the information being submitted in this workbook.  The backup information for the information provided on this workbook is subject to all record keeping and audit processes, procedures, and guidelines under the Lanterman Act and Title 17, CCR.  "]
[" "]
["EMAIL ADDRESS:"]
["Megand@nbrc.net"]
[]
["MAILING ADDRESS:"]
["10 Executive Court"]
["PO Box 3360 "]
["Napa, CA 94558"]

{"sheet":"Vendor Summary & Certification","index":3,"n_rows":42,"n_cols":4,"rows_kept":42,"cut":false,"hidden":false,"merged":[[24,2,24,5],[25,2,25,5],[32,0,32,8],[39,2,39,5],[39,7,39,9],[36,0,36,8],[37,0,37,8],[5,2,5,5],[10,2,10,5],[11,2,11,5],[12,2,12,5],[13,2,13,5],[15,2,15,5],[16,2,16,5],[17,2,17,5],[22,2,22,5],[23,2,23,5],[18,2,18,5]]}
["AB 10 MINIMUM WAGE 2016 RATE ADJUSTMENT"]
["SUMMARY & CERTIFICATION SHEET"]
[]
["PROGRAM INFORMATION"]
[]
["Service Provider Name:",null,{"$f":"'Vendor Worksheet'!C5:H5","v":0}]
["Vendor Number:",null,{"$f":"'Vendor Worksheet'!C6:H6","v":0}]
["Service Code:",null,{"$f":"'Vendor Worksheet'!C7:H7","v":0}]
["Subcode (if applicable):",null,{"$f":"'Vendor Worksheet'!C8","v":0}]
[]
["Service Address:"]
[]
[]
[]
[]
["Mailing Address:"]
["(if different than service address)"]
[]
[]
[]
["CONTACT INFORMATION"]
[null,null,"Individual Responsible for Completing Worksheet:"]
["Contact Name:"]
["Contact Phone Number:"]
["Email Address:"]
["Executive Director/Owner:"]
[]
["Current Rate:",null,{"$f":"'Vendor Worksheet'!C12","v":0}]
["Proposed Rate Change:",null,{"$f":"'Vendor Worksheet'!C13","v":{"$error":"#DIV/0!"}}]
["Proposed New Rate:",null,{"$f":"'Vendor Worksheet'!C14","v":{"$error":"#DIV/0!"}}]
["Unit Type:",null,{"$f":"'Vendor Worksheet'!H12","v":0}]
[]
["By checking the box below, I certify that the information provided to the Department is specific to payroll costs necessary to meet the requirements of the minimum wage increase effective January 1, 2016.  I additionally certify to the best of my knowledge and belief the information submitted is true and correct, and subject to verification by all record keeping and audit processes, procedures, and guidelines under the Lanterman Act and Title 17 of the California Code of Regulations.  "]
[]
[null,null,null,"I AGREE"]
[]
["To submit this completed 'Vendor Summary & Certification' and 'Vendor Worksheet' electronically please save the document as instructed on the Certification Instructions, then click on the following 'SUBMIT' button."]
["Before submitting please save your workbook using your vendor number!"]
[]
[null,null,"SUBMIT"]
[]
["Please keep a copy for your records and submit a copy to the vendoring regional center."]